Workbook

Sheet vollstationär
A1: Heimentgelte
A3: Seniorenbetreuung Herbstblatt Rötz
A4: Stand 01.03.2024
A7: Doppelzimmer
A8: Leistungsart | B8: Tagessatz | D8: Unterkunft | E8: Ver- pflegung | F8: Ausbildungs- umlage | G8: Investitions- kosten | H8: Tagessatz Gesamt | J8: monatliche Tage | L8: monatliche Gesamtkosten | M8: Zuzahlung Pflegekasse | N8: monatlicher Eigenanteil
A9: Pflegegrad 1 | B9: 58.07 | D9: 11.64 | E9: 12.91 | F9: 6.63 | G9: 18 | H9: =SUM(B9:G9) -> 107.25 | I9: x | J9: 30.42 | K9: = | L9: =H9*J9 -> 3262.545 | M9: -125 | N9: =SUM(L9:M9) -> 3137.545
A10: Pflegegrad 2 | B10: 72.08 | D10: 11.64 | E10: 12.91 | F10: 6.63 | G10: 18 | H10: =SUM(B10:G10) -> 121.26 | I10: x | J10: 30.42 | K10: = | L10: =H10*J10 -> 3688.7292 | M10: -770 | N10: =SUM(L10:M10) -> 2918.7292
A11: Pflegegrad 3 | B11: 88.26 | D11: 11.64 | E11: 12.91 | F11: 6.63 | G11: 18 | H11: =SUM(B11:G11) -> 137.44 | I11: x | J11: 30.42 | K11: = | L11: =H11*J11 -> 4180.9248 | M11: -1262 | N11: 2918.9248
A12: Pflegegrad 4 | B12: 105.12 | D12: 11.64 | E12: 12.91 | F12: 6.63 | G12: 18 | H12: =SUM(B12:G12) -> 154.3 | I12: x | J12: 30.42 | K12: = | L12: 4693.806 | M12: -1775 | N12: 2918.806
A13: Pflegegrad 5 | B13: 112.68 | D13: 11.64 | E13: 12.91 | F13: 6.63 | G13: 18 | H13: =SUM(B13:G13) -> 161.86 | I13: x | J13: 30.42 | K13: = | L13: 4923.7812 | M13: -2005 | N13: 2918.7812
A17: Einzelzimmer
A18: Leistungsart | B18: Tagessatz | C18: EZ-Zuschlag | D18: Unterkunft | E18: Ver- pflegung | F18: Ausbildungs- umlage | G18: Investitions- kosten | H18: Tagessatz Gesamt | J18: monatliche Tage | L18: monatliche Gesamtkosten | M18: Zuzahlung Pflegekasse | N18: monatlicher Eigenanteil
A19: Pflegegrad 1 | B19: 58.07 | C19: 7 | D19: 11.64 | E19: 12.91 | F19: 6.63 | G19: 18 | H19: =SUM(B19:G19) -> 114.25 | I19: x | J19: 30.42 | K19: = | L19: =H19*J19 -> 3475.485 | M19: -125 | N19: =SUM(L19:M19) -> 3350.485
A20: Pflegegrad 2 | B20: 72.08 | C20: 7 | D20: 11.64 | E20: 12.91 | F20: 6.63 | G20: 18 | H20: =SUM(B20:G20) -> 128.26 | I20: x | J20: 30.42 | K20: = | L20: =H20*J20 -> 3901.6692 | M20: -770 | N20: =SUM(L20:M20) -> 3131.6692
A21: Pflegegrad 3 | B21: 88.26 | C21: 7 | D21: 11.64 | E21: 12.91 | F21: 6.63 | G21: 18 | H21: =SUM(B21:G21) -> 144.44 | I21: x | J21: 30.42 | K21: = | L21: 4393.8648 | M21: -1262 | N21: 3131.8648
A22: Pflegegrad 4 | B22: 105.12 | C22: 7 | D22: 11.64 | E22: 12.91 | F22: 6.63 | G22: 18 | H22: =SUM(B22:G22) -> 161.3 | I22: x | J22: 30.42 | K22: = | L22: 4906.746 | M22: -1775 | N22: 3131.746
A23: Pflegegrad 5 | B23: 112.68 | C23: 7 | D23: 11.64 | E23: 12.91 | F23: 6.63 | G23: 18 | H23: =SUM(B23:G23) -> 168.86 | I23: x | J23: 30.42 | K23: = | L23: 5136.7212 | M23: -2005 | N23: 3131.7212
A27: Dieses Informationsblatt für Heimentgelte enthält die Gesamtkosten für 30,42 Tage.
A30: Berechnung einheitlicher EEE (einrichtungseinheitlicher Eigenanteil)
A32: Leistungsart | B32: Tagessatz | D32: monatliche Tage | G32: Gesamt | H32: Zuzahlung Pflegekasse | J32: monatlicher Eigenanteil | N32: täglicher EEE
A33: PG 1 | B33: 58.07 | C33: x | D33: 30.42 | E33: = | G33: =B33*D33 -> 1766.4894 | H33: -125 | I33: = | J33: =G33+H33 -> 1641.4894
A34: PG 2 | B34: 72.08 | C34: x | D34: 30.42 | E34: = | G34: =B34*D34 -> 2192.6736 | H34: -770 | I34: = | J34: =G34+H34 -> 1422.6736 | L34: ./. 30,42 | M34: = | N34: =J34/30.42 -> 46.76770546
A35: PG 3 | B35: 88.26 | C35: x | D35: 30.42 | E35: = | G35: =B35*D35 -> 2684.8692 | H35: -1262 | I35: = | J35: =G35+H35 -> 1422.8692 | L35: ./. 30,42 | M35: = | N35: =J35/30.42 -> 46.77413544
A36: PG 4 | B36: 105.12 | C36: x | D36: 30.42 | E36: = | G36: =B36*D36 -> 3197.7504 | H36: -1775 | I36: = | J36: =G36+H36 -> 1422.7504 | L36: ./. 30,42 | M36: = | N36: 46.77023011
A37: PG 5 | B37: 112.68 | C37: x | D37: 30.42 | E37: = | G37: =B37*D37 -> 3427.7256 | H37: -2005 | I37: = | J37: =G37+H37 -> 1422.7256 | L37: ./. 30,42 | M37: = | N37: 46.76941486
A39: Der einheitliche EEE wurde eingeführt, damit alle Bewohner der Pflegegrade 2-5 den gleichen monatlichen Eigenanteil an den Pflegekosten haben.
A41: Zusätzliche Betreuung nach §43b
A42: Pflegegrad | B42: Tagessatz | D42: monatlich | G42: Gesamt | H42: Zuzahlung Pflegekasse | J42: monatlicher Eigenanteil
A43: PG 1 | B43: 5.02 | C43: x | D43: 30.42 | E43: = | G43: =B43*D43 -> 152.7084 | H43: -152.71 | I43: = | J43: =G43+H43 -> -0.0016
A44: PG 2 | B44: 5.02 | C44: x | D44: 30.42 | E44: = | G44: =B44*D44 -> 152.7084 | H44: -152.71 | I44: = | J44: =G44+H44 -> -0.0016
A45: PG 3 | B45: 5.02 | C45: x | D45: 30.42 | E45: = | G45: =B45*D45 -> 152.7084 | H45: -152.71 | I45: = | J45: =G45+H45 -> -0.0016
A46: PG 4 | B46: 5.02 | C46: x | D46: 30.42 | E46: = | G46: =B46*D46 -> 152.7084 | H46: -152.71 | I46: = | J46: =G46+H46 -> -0.0016
A47: PG 5 | B47: 5.02 | C47: x | D47: 30.42 | E47: = | G47: =B47*D47 -> 152.7084 | H47: -152.71 | I47: = | J47: =G47+H47 -> -0.0016
A51: Bei Bewohnern mit Beihilfe trägt einen Teil die Pflegekasse und den anderen Teil die Beihilfe, je nachdem welche Sätze vereinbart sind. In der Regel 50% : 50%

Sheet Tabelle2

Sheet Tabelle3
